bitfinex/quotes_SOLUSD_20251103
["timestamp","ask_amount","ask_price","bid_price","bid_amount"]
[1762196637087,3.91517198,167.61,167.6,4.94258922]
[1762196637295,16.35517198,167.61,167.6,4.94258922]
[1762196637482,16.35517198,167.61,167.58,0.1]
[1762196637684,12.44,167.61,167.6,4.94258922]
[1762196637889,16.36552699,167.61,167.6,4.94258922]
[1762196639680,3.92552699,167.61,167.6,16.51176555]
[1762196639884,12.44,167.61,167.6,16.51176555]
[1762196640280,4.90294297,167.66,167.6,16.51176555]
[1762196640504,16.36659743,167.65,167.61,0.66]
[1762196640799,16.36659743,167.64,167.61,0.66]
[1762196641098,3.92659743,167.63,167.62,20.592]
[1762196641313,4.90294297,167.67,167.63,9.78882769]
[1762196641515,12.44,167.66,167.63,21.252]
[1762196641680,12.44,167.65,167.63,21.252]
[1762196641877,12.44,167.64,167.63,0.66]
[1762196642081,12.44,167.64,167.62,0.66]
[1762196642297,12.44,167.64,167.63,20.592]
[1762196642511,4.90294297,167.72,167.68,20.592]
[1762196642802,12.44,167.71,167.64,20.87807205]
[1762196642984,4.90294297,167.73,167.7,4.94258922]
[1762196643184,4.90294297,167.73,167.72,4.94258922]
[1762196643391,4.90294297,167.74,167.72,4.94258922]
[1762196643592,12.44,167.73,167.72,4.94258922]
[1762196643823,18.04294297,167.73,167.63,6.6255006]
[1762196643990,4.90294297,167.71,167.62,5.96578705]
[1762196644194,4.90294297,167.7,167.66,4.94258922]
[1762196644420,18.04294297,167.69,167.65,4.94258922]
[1762196644597,18.04294297,167.69,167.62,4.94258922]
[1762196644598,5.04510454,167.67,167.62,4.94258922]
[1762196644791,4.90294297,167.66,167.63,4.94258922]
[1762196645111,4.90294297,167.68,167.65,4.94258922]
[1762196645295,13.14,167.67,167.65,4.94258922]
[1762196645486,13.14,167.67,167.64,4.94258922]
[1762196645687,0.7,167.66,167.63,4.94258922]
[1762196645897,0.7,167.66,167.58,20.692]
[1762196646132,4.94258922,167.63,167.58,0.1]
[1762196646437,17.48510454,167.62,167.59,4.94258922]
[1762196646737,17.48510454,167.62,167.6,4.94258922]
[1762196646738,12.44,167.62,167.6,4.94258922]
[1762196646901,0.7,167.61,167.59,4.94258922]
[1762196647220,13.16,167.61,167.58,5.04258922]
[1762196647397,13.16,167.61,167.59,4.94258922]
[1762196647599,0.7,167.6,167.59,4.94258922]
[1762196648201,0.7,167.6,167.58,5.04258922]
[1762196648626,5.60294297,167.6,167.58,0.1]
[1762196648802,0.7,167.6,167.58,0.1]
[1762196649008,5.60294297,167.62,167.59,4.94258922]
[1762196649312,0.14216157,167.64,167.58,0.1]
[1762196649313,12.44,167.61,167.6,4.94258922]
[1762196649718,13.14,167.61,167.6,4.94258922]
[1762196650825,13.16,167.61,167.6,4.94258922]
[1762196651133,13.14,167.61,167.58,5.04258922]
[1762196651336,5.60294297,167.6,167.59,4.94258922]
[1762196651636,12.44,167.6,167.59,4.94258922]
[1762196652237,12.44,167.6,167.58,0.1]
[1762196652436,4.90294297,167.62,167.59,4.94258922]
[1762196652598,0.7,167.63,167.61,4.94258922]
[1762196652599,4.90294297,167.63,167.61,4.94258922]
[1762196652802,4.90294297,167.64,167.62,4.94258922]
[1762196653019,4.90294297,167.64,167.63,4.94258922]
[1762196653221,5.60294297,167.64,167.63,4.94258922]
[1762196653426,21.96420632,167.64,167.62,4.94258922]
[1762196653623,8.82268385,167.63,167.61,4.94258922]
[1762196653841,3.92126335,167.62,167.58,0.76]
[1762196654142,5.6014205,167.63,167.61,4.94258922]
[1762196654306,3.92117369,167.62,167.58,0.76]
[1762196654636,3.92117369,167.61,167.58,0.76]
[1762196654807,4.9014205,167.62,167.58,0.76]
[1762196654808,16.36117369,167.6,167.58,0.76]
[1762196655009,3.92117369,167.59,167.58,0.1]
[1762196655514,3.92117369,167.59,167.58,5.04258922]
[1762196657331,16.36117369,167.59,167.58,5.70258922]
[1762196658636,3.92117369,167.59,167.58,5.70258922]
[1762196658808,16.36117369,167.59,167.58,5.70258922]
[1762196659011,16.36117369,167.59,167.58,5.04258922]
[1762196661005,16.36117369,167.59,167.58,0.1]
[1762196661216,16.36117369,167.59,167.58,5.04258922]
[1762196662326,3.92117369,167.59,167.58,0.1]
[1762196662530,16.34117369,167.59,167.58,5.04258922]
[1762196664323,17.04117369,167.59,167.58,0.1]
[1762196664639,17.04117369,167.59,167.58,5.04258922]
[1762196665007,21.24259419,167.59,167.58,5.04258922]
[1762196666426,21.94259419,167.59,167.58,5.04258922]
[1762196666929,21.24259419,167.59,167.58,5.04258922]
[1762196667131,3.92117369,167.59,167.58,5.04258922]
[1762196667313,16.34117369,167.59,167.58,5.04258922]
[1762196669238,16.34117369,167.59,167.58,0.1]
[1762196669436,3.92117369,167.59,167.58,11.71988842]
[1762196669739,12.4,167.59,167.58,11.71988842]
[1762196670117,16.32117369,167.59,167.58,11.71988842]
[1762196670623,3.92117369,167.59,167.58,16.66247764]
[1762196670827,12.4,167.59,167.58,16.66247764]
[1762196671028,12.4,167.59,167.58,11.71988842]
[1762196671341,26.86,167.67,167.61,20.592]
[1762196671528,26.86,167.67,167.66,4.94258922]
[1762196671717,39.26,167.67,167.66,3.97340844]
[1762196671917,39.26,167.67,167.66,4.94258922]
[1762196672136,39.97,167.67,167.66,4.94258922]
[1762196672717,0.7,167.71,167.66,5.60258922]
[1762196672915,0.7,167.74,167.7,4.94258922]
[1762196673133,4.9014205,167.76,167.73,4.94258922]
[1762196673333,5.6014205,167.78,167.75,4.94258922]
[1762196673535,12.42,167.77,167.7,11.56549136]
[1762196673737,12.42,167.77,167.71,0.66]
[1762196674069,13.12,167.77,167.71,0.66]
[1762196674522,12.42,167.76,167.71,0.66]
[1762196674852,12.42,167.76,167.75,4.94258922]
[1762196675628,0.2,167.83,167.75,5.60258922]
[1762196675828,12.4,167.82,167.75,0.66]
[1762196676028,12.4,167.82,167.74,5.96154404]
[1762196676029,0.7,167.81,167.76,4.94258922]
[1762196676548,0.7,167.81,167.73,20.592]
[1762196676754,0.7,167.81,167.74,4.94258922]
[1762196676940,0.14216157,167.8,167.74,4.94258922]
[1762196677328,0.7,167.79,167.74,4.94258922]
[1762196677533,12.42,167.78,167.74,4.94258922]
[1762196677826,12.42,167.78,167.72,26.55424756]
[1762196678036,13.12,167.78,167.72,26.55424756]
[1762196678924,0.7,167.8,167.73,0.66]
[1762196679128,12.4,167.77,167.75,4.94258922]
[1762196679731,12.4,167.77,167.75,11.56375268]
[1762196679935,12.4,167.77,167.75,6.62116346]
[1762196680250,0.7,167.76,167.65,50.0]
[1762196680445,4.94258922,167.7,167.59,12.4]
[1762196680644,4.94258922,167.66,167.59,12.4]
[1762196680829,4.94258922,167.65,167.58,0.1]
[1762196681154,4.94258922,167.63,167.58,0.1]
[1762196681360,4.94258922,167.59,167.58,0.1]
[1762196681738,0.14216157,167.61,167.58,0.1]
[1762196681941,0.14216157,167.59,167.58,0.1]
[1762196682461,9.93098926,167.59,167.43,3.05170079]
[1762196682658,4.94258922,167.52,167.44,4.94258922]
[1762196682840,0.14216157,167.54,167.4,4.94258922]
[1762196683031,12.44,167.51,167.46,105.60258922]
[1762196683354,12.44,167.51,167.46,100.66]
[1762196683730,12.44,167.51,167.48,4.94258922]
[1762196684251,12.44,167.51,167.46,100.66]
[1762196684449,12.44,167.51,167.48,4.94258922]
[1762196684759,12.44,167.51,167.49,4.94258922]
[1762196685063,12.44,167.51,167.48,4.94258922]
[1762196685354,0.41,167.53,167.5,4.94258922]
[1762196685526,12.44,167.52,167.51,4.94258922]
[1762196686939,12.44,167.52,167.51,5.60258922]
[1762196687143,0.41,167.58,167.51,11.57238206]
[1762196687351,12.44,167.54,167.53,4.94258922]
[1762196688363,4.9014205,167.64,167.53,8.28576212]
[1762196688652,12.44,167.63,167.54,0.66]
[1762196688853,7.62576212,167.61,167.55,7.62576212]
[1762196689054,4.30091385,167.62,167.57,7.62576212]
[1762196689238,4.30091385,167.62,167.59,7.62576212]
[1762196689445,4.30091385,167.62,167.57,7.62576212]
[1762196689652,4.30091385,167.62,167.59,7.62576212]
[1762196689852,4.30091385,167.62,167.6,7.62576212]
[1762196690733,4.30091385,167.62,167.59,7.62576212]
[1762196691542,4.30091385,167.62,167.55,0.66]
[1762196691543,3.89091385,167.62,167.58,7.62576212]
[1762196691763,3.89091385,167.62,167.56,7.62576212]
[1762196691764,0.55216157,167.61,167.56,7.62576212]
[1762196691950,8.17792369,167.61,167.55,7.62576212]
[1762196692150,28.21776212,167.59,167.48,0.66]
[1762196692365,16.49307542,167.58,167.53,7.62576212]
[1762196692568,0.14216157,167.56,167.53,7.62576212]
[1762196692745,0.14216157,167.56,167.48,7.62576212]
[1762196692746,28.35992369,167.54,167.48,7.62576212]
[1762196692937,0.14216157,167.52,167.48,7.62576212]
[1762196693135,4.03307542,167.52,167.49,7.62576212]
[1762196693469,0.41,167.51,167.48,7.62576212]
[1762196694276,0.41,167.51,167.47,7.62576212]
[1762196694441,0.41,167.51,167.48,7.62576212]
[1762196694636,4.03307542,167.52,167.49,7.62576212]
[1762196694843,4.03307542,167.52,167.5,7.62576212]
[1762196695234,3.89091385,167.52,167.51,7.62576212]
[1762196695437,12.46,167.52,167.51,7.62576212]
[1762196696471,12.46,167.52,167.47,0.66]
[1762196696762,12.46,167.52,167.51,7.62576212]
[1762196697848,16.34250674,167.52,167.51,7.62576212]
[1762196698240,16.34250674,167.52,167.46,100.66]
[1762196698457,3.88250674,167.51,167.47,0.66]
[1762196699384,3.88250674,167.51,167.46,100.0]
[1762196699568,3.88250674,167.51,167.47,0.66]
[1762196699763,3.88250674,167.51,167.48,7.62576212]
[1762196700481,3.88250674,167.51,167.49,0.66]
[1762196700853,3.88250674,167.51,167.48,7.62576212]
[1762196701164,0.55216157,167.5,167.46,100.0]
[1762196701481,0.14216157,167.47,167.46,100.0]
[1762196701655,16.54466831,167.47,167.46,100.0]
[1762196701854,3.88250674,167.47,167.46,108.28576212]
[1762196702054,12.52,167.48,167.46,108.28576212]
[1762196702277,12.52,167.48,167.47,8.28576212]
[1762196702977,0.67,167.57,167.48,9.78882769]
[1762196703171,12.52,167.56,167.55,7.62576212]
[1762196703374,31.7814205,167.58,167.55,7.62576212]
[1762196703375,26.88,167.58,167.55,7.62576212]
[1762196703682,26.88,167.58,167.57,7.62576212]
[1762196703980,12.52,167.58,167.57,7.62576212]
[1762196705178,12.52,167.58,167.52,7.62576212]
[1762196705179,13.19,167.58,167.52,0.66]
[1762196705378,13.19,167.58,167.55,7.62576212]
[1762196705581,13.19,167.58,167.54,7.62576212]
[1762196705755,12.52,167.58,167.54,7.62576212]
[1762196705963,4.11420251,167.62,167.57,7.62576212]
[1762196706285,0.67,167.65,167.61,7.62576212]
[1762196706459,12.52,167.64,167.61,7.62576212]
[1762196706655,12.52,167.64,167.61,7.14117173]
[1762196706956,0.67,167.63,167.57,0.66]
[1762196707274,0.67,167.63,167.59,7.62576212]
[1762196707484,0.67,167.63,167.58,7.62576212]
[1762196707785,0.14216157,167.62,167.59,7.62576212]
[1762196707986,0.14216157,167.62,167.6,7.62576212]
[1762196707987,0.81216157,167.62,167.6,7.62576212]
[1762196708357,0.81216157,167.62,167.59,7.62576212]
[1762196708559,0.14216157,167.62,167.59,7.62576212]
[1762196708794,0.14216157,167.6,167.52,21.252]
[1762196708973,0.14216157,167.6,167.51,9.78882769]
[1762196708974,0.14216157,167.58,167.54,7.62576212]
[1762196709172,0.14216157,167.62,167.57,7.62576212]
[1762196709361,0.67,167.63,167.6,7.62576212]
[1762196709362,12.66216157,167.61,167.6,7.62576212]
[1762196709758,13.33216157,167.61,167.6,7.62576212]
[1762196710094,13.33216157,167.61,167.59,7.62576212]
[1762196711171,13.33216157,167.61,167.57,7.62576212]
[1762196711172,0.67,167.6,167.57,7.62576212]
[1762196711488,0.14216157,167.57,167.52,7.62576212]
[1762196711785,0.14216157,167.55,167.5,7.62576212]
[1762196712171,20.14576212,167.56,167.47,7.62576212]
[1762196712172,7.76792369,167.53,167.47,7.62576212]
[1762196712370,0.14216157,167.5,167.46,100.0]
[1762196712766,0.14216157,167.48,167.46,100.0]
[1762196712971,12.54,167.47,167.46,100.0]
[1762196713175,12.54,167.47,167.46,107.62576212]
[1762196713404,12.54,167.47,167.46,100.0]
[1762196713890,13.21,167.47,167.46,100.0]
[1762196714062,17.07533883,167.47,167.46,100.0]
[1762196714262,17.2175004,167.47,167.46,100.0]
[1762196717271,24.84326252,167.47,167.46,100.0]
[1762196717470,17.2175004,167.47,167.46,100.0]
[1762196717779,17.1975004,167.47,167.46,107.62576212]
[1762196717978,17.1975004,167.47,167.46,100.0]
[1762196719293,24.82326252,167.47,167.46,100.0]
[1762196720073,24.82326252,167.47,167.46,89.90765419]
[1762196720673,3.86533883,167.47,167.46,97.53341631]
[1762196720982,20.81576212,167.47,167.46,89.35765419]
[1762196721175,24.82326252,167.47,167.46,89.35765419]
[1762196721589,36.6120902,167.47,167.46,89.35765419]
[1762196721793,36.6120902,167.47,167.46,74.21536291]
[1762196722300,34.61209021,167.47,167.46,74.21536291]
[1762196722604,26.98632809,167.47,167.46,74.21536291]
[1762196722810,47.57832809,167.47,167.46,74.21536291]
[1762196722983,55.20409021,167.47,167.46,74.21536291]
[1762196723703,34.61209021,167.47,167.46,74.07320135]
[1762196723877,43.1041309,167.47,167.46,74.07320135]
[1762196724073,43.1041309,167.47,167.46,73.83090615]
[1762196724389,36.6120902,167.47,167.46,73.83090615]
[1762196724782,22.09209021,167.47,167.46,73.83090615]
[1762196724978,26.98632809,167.47,167.46,73.83090615]
[1762196725179,34.61209021,167.47,167.46,73.83090615]
[1762196725498,41.07456952,167.47,167.46,73.83090615]
[1762196725674,34.61209021,167.47,167.46,73.83090615]
[1762196725874,41.07456952,167.47,167.46,73.83090615]
[1762196726118,36.6120902,167.47,167.46,73.68874459]
[1762196726410,35.05832809,167.47,167.46,73.68874459]
[1762196726696,42.54192864,167.47,167.46,73.68874459]
[1762196726871,4.44533883,167.47,167.46,73.68874459]
[1762196727071,4.44533883,167.47,167.46,81.31450671]
[1762196727072,16.38533883,167.47,167.46,81.31450671]
[1762196727275,16.38533883,167.47,167.46,73.44644939]
[1762196727803,36.97733883,167.47,167.46,73.44644939]
[1762196728009,40.99990605,167.47,167.46,73.44644939]
[1762196728176,34.52209021,167.47,167.46,73.44644939]
[1762196728587,26.89632809,167.47,167.46,73.44644939]
[1762196728792,34.52209021,167.47,167.46,73.44644939]
[1762196729406,28.89632808,167.47,167.46,73.44644939]
[1762196729583,25.1795004,167.47,167.46,73.44644939]
[1762196729790,23.6015298,167.47,167.46,73.44644939]
[1762196730194,24.75326252,167.47,167.46,73.44644939]
[1762196730390,37.1395004,167.47,167.46,73.44644939]
[1762196730589,45.32526252,167.47,167.46,73.44644939]
[1762196730888,55.11409021,167.47,167.46,73.44644939]
[1762196731695,57.1140902,167.47,167.46,58.30254981]
[1762196731888,47.32526251,167.47,167.46,58.30254981]
[1762196732200,57.1140902,167.47,167.46,58.30254981]
[1762196732818,49.48832808,167.47,167.46,58.30254981]
[1762196733108,57.1140902,167.47,167.46,58.30254981]
[1762196733404,36.5220902,167.47,167.46,58.30254981]
[1762196734004,3.86533883,167.47,167.46,58.30254981]
[1762196734184,43.44330639,167.47,167.46,58.30254981]
[1762196734384,16.38533883,167.47,167.46,58.30254981]
[1762196734622,16.5275004,167.47,167.46,58.30254981]
[1762196734782,3.86533883,167.47,167.46,58.99254981]
[1762196735096,3.86533883,167.47,167.46,48.20894416]
[1762196735097,24.15326252,167.47,167.46,48.20894416]
[1762196736214,44.74526252,167.47,167.46,48.20894416]
[1762196736404,16.5275004,167.47,167.46,48.20894416]
[1762196736803,16.5275004,167.47,167.46,48.89894416]
[1762196737014,16.38533883,167.47,167.46,48.89894416]
[1762196737218,16.38533883,167.47,167.46,48.20894416]
[1762196737624,4.0075004,167.47,167.46,48.89894416]
[1762196737934,16.5475004,167.47,167.46,48.20894416]
[1762196738104,16.40533883,167.47,167.46,48.89894416]
[1762196738494,16.5475004,167.47,167.46,48.20894416]
[1762196738816,36.5420902,167.47,167.46,48.20894416]
[1762196740024,43.00805776,167.47,167.46,48.20894416]
[1762196740423,36.5420902,167.47,167.46,48.20894416]
[1762196740829,36.5420902,167.47,167.46,48.0667826]
[1762196741121,43.01052045,167.47,167.46,48.0667826]
[1762196741323,36.5420902,167.47,167.46,48.0667826]
[1762196741701,14.23416652,167.47,167.46,32.92023094]
[1762196741916,34.39992864,167.47,167.46,32.92023094]
[1762196742219,36.39992863,167.47,167.46,32.92023094]
[1762196742412,36.5420902,167.47,167.46,32.92023094]
[1762196742920,36.5420902,167.47,167.29,0.1]
[1762196743121,7.62576212,167.36,167.29,0.1]
[1762196743298,3.12,167.38,167.29,0.1]
[1762196743299,20.73416157,167.34,167.3,0.69]
[1762196743509,3.86533883,167.33,167.31,7.62576212]
[1762196743724,50.75416157,167.38,167.32,7.62576212]
[1762196743915,50.75416157,167.38,167.29,0.1]
[1762196743916,16.45758782,167.37,167.36,7.62576212]
[1762196744113,16.45758782,167.37,167.35,7.62576212]
[1762196744308,12.58,167.37,167.35,7.62576212]
[1762196744504,3.87702043,167.36,167.34,7.62576212]
[1762196744734,12.58,167.35,167.34,7.62576212]
[1762196745030,12.58,167.35,167.34,8.31576212]
[1762196746333,3.12,167.38,167.34,8.31576212]
[1762196746512,12.58,167.37,167.35,0.69]
[1762196746717,3.87597543,167.36,167.35,0.69]
[1762196747029,11.50173755,167.36,167.32,0.54]
[1762196747235,0.14216157,167.34,167.32,0.54]
[1762196747429,12.58,167.33,167.29,7.72576212]
[1762196747607,12.58,167.33,167.31,7.62576212]
[1762196747808,12.58,167.33,167.3,7.62576212]
[1762196748009,12.58,167.33,167.3,0.69]
[1762196748213,12.58,167.33,167.29,0.1]
[1762196748214,3.87045537,167.32,167.29,0.1]
[1762196748427,11.49621749,167.32,167.29,0.79]
[1762196748634,3.87045537,167.32,167.29,0.79]
[1762196749026,11.49621749,167.32,167.29,0.79]
[1762196749921,11.49621749,167.32,167.29,0.1]
[1762196750116,20.592,167.3,167.29,0.1]
[1762196750424,20.592,167.3,167.29,0.79]
[1762196750425,16.45045537,167.3,167.29,0.79]
[1762196750821,3.87045537,167.3,167.29,0.79]
[1762196751028,12.58,167.3,167.29,0.79]
[1762196751215,0.14216157,167.35,167.29,5.75204322]
[1762196751538,0.14216157,167.33,167.3,0.69]
[1762196751835,5.10420479,167.31,167.29,0.1]
[1762196752038,5.10420479,167.3,167.29,0.1]
[1762196752222,20.592,167.3,167.29,0.1]
[1762196752412,37.08263439,167.3,167.29,0.1]
[1762196753222,16.49063439,167.3,167.29,0.1]
[1762196753629,22.17483918,167.3,167.29,0.1]
[1762196753831,21.59483918,167.3,167.29,0.1]
[1762196754135,42.18683918,167.3,167.29,0.1]
[1762196754335,3.87063439,167.3,167.29,0.1]
[1762196754540,12.62,167.3,167.29,0.1]
[1762196754737,16.49063439,167.3,167.29,0.1]
[1762196758150,16.49063439,167.3,167.27,0.4]
[1762196758353,3.87063439,167.29,167.27,0.4]
[1762196758527,3.87063439,167.28,167.27,0.4]
[1762196759039,3.87063439,167.28,167.27,5.36204322]
[1762196759363,3.87063439,167.28,167.27,0.42]
[1762196759653,16.38063439,167.28,167.27,5.38204322]
[1762196760024,3.66063439,167.28,167.27,5.38204322]
[1762196760231,11.2,167.28,167.27,21.14922925]
[1762196760543,11.2,167.28,167.27,5.38204322]
[1762196761123,7.1744278,167.39,167.27,11.36040156]
[1762196761322,12.6,167.38,167.28,9.78882769]
[1762196761528,12.6,167.38,167.31,4.96204322]
[1762196761728,12.6,167.37,167.33,10.93793668]
[1762196761925,12.6,167.36,167.29,20.73416157]
[1762196762138,12.6,167.35,167.32,4.96204322]
[1762196763547,12.6,167.35,167.33,4.96204322]
[1762196763948,12.6,167.35,167.3,30.38082769]
[1762196764159,12.6,167.35,167.3,20.592]
[1762196764459,12.6,167.35,167.27,41.32120689]
[1762196764639,4.96204322,167.34,167.25,9.78882769]
[1762196764953,25.55404322,167.32,167.2,5.9806219]
[1762196765124,12.6,167.31,167.23,4.96204322]
[1762196765538,12.6,167.31,167.21,9.93098926]
[1762196765739,12.6,167.31,167.21,4.96204322]
[1762196765740,4.96204322,167.3,167.21,4.96204322]
[1762196765959,5.62204322,167.3,167.21,4.96204322]
[1762196766127,4.96204322,167.28,167.15,9.78882769]
[1762196766337,12.6,167.27,167.19,4.96204322]
[1762196767153,4.96204322,167.26,167.15,5.98265031]
[1762196767344,4.96204322,167.26,167.18,4.96204322]
[1762196767538,4.96204322,167.26,167.18,25.55404322]
[1762196767942,12.6,167.27,167.2,4.96204322]
[1762196768143,12.6,167.27,167.18,26.57340109]
[1762196768343,12.6,167.27,167.2,4.96204322]
[1762196768545,12.6,167.26,167.24,4.96204322]
[1762196768755,12.6,167.25,167.24,4.96204322]
[1762196769639,12.6,167.26,167.24,4.96204322]
[1762196770656,12.6,167.26,167.24,10.94142858]
[1762196770840,4.86561534,167.33,167.25,9.78882769]
[1762196771044,12.6,167.32,167.3,4.96204322]
[1762196771259,12.6,167.32,167.31,4.96204322]
[1762196771460,0.66,167.31,167.09,5.98475644]
[1762196771664,20.592,167.23,167.02,152.86885293]
[1762196771980,12.72,167.22,167.16,4.96204322]
[1762196772275,27.2174848,167.27,167.18,4.96204322]
[1762196772276,3.89001272,167.21,167.18,4.96204322]
[1762196772476,3.89001272,167.25,167.18,4.96204322]
[1762196772782,4.55001272,167.25,167.18,4.96204322]
[1762196772950,4.55001272,167.25,167.11,50.86469755]
[1762196773146,3.89001272,167.25,167.21,4.96204322]
[1762196773646,3.89001272,167.25,167.23,4.96204322]
[1762196773865,13.4,167.29,167.23,4.96204322]
[1762196774062,3.890059,167.28,167.23,4.96204322]
[1762196774566,3.890059,167.28,167.22,5.9798752]
[1762196774757,4.550059,167.28,167.22,10.94191842]
[1762196774959,5.62204322,167.27,167.19,4.96204322]
[1762196775167,5.62204322,167.27,167.19,9.78882769]
[1762196775357,0.66,167.26,167.21,4.96204322]
[1762196776246,4.96204322,167.25,167.18,4.96204322]
[1762196776444,17.68204322,167.24,167.17,4.96204322]
[1762196776658,3.890059,167.23,167.17,4.96204322]
[1762196776859,3.890059,167.23,167.19,4.96204322]
[1762196777447,3.890059,167.23,167.17,4.96204322]
[1762196777874,3.890059,167.23,167.19,4.96204322]
[1762196778167,3.890059,167.23,167.16,9.78882769]
[1762196778168,3.890059,167.23,167.18,4.96204322]
[1762196778367,3.890059,167.23,167.2,4.96204322]
[1762196779952,3.890059,167.23,167.21,4.96204322]
[1762196780356,3.890059,167.23,167.22,4.96204322]
[1762196781865,12.72,167.24,167.22,4.96204322]
[1762196782061,12.72,167.24,167.23,4.96204322]
[1762196782369,16.61358614,167.24,167.23,4.96204322]
[1762196782751,0.66,167.29,167.23,4.96204322]
[1762196783067,3.89680396,167.28,167.21,9.78882769]
[1762196783269,3.89680396,167.27,167.21,9.78882769]
[1762196783472,3.89680396,167.28,167.21,9.78882769]
[1762196784065,3.89680396,167.28,167.2,0.14216157]
[1762196784264,0.66,167.28,167.27,4.96204322]
[1762196784466,3.90213163,167.28,167.27,4.96204322]
[1762196784660,4.56213163,167.28,167.2,4.96204322]
[1762196784868,4.56213163,167.27,167.24,4.96204322]
[1762196785165,3.90213163,167.26,167.24,4.96204322]
[1762196785373,0.66,167.26,167.25,4.96204322]
[1762196785571,3.90273745,167.26,167.25,4.96204322]
[1762196787050,9.42522987,167.26,167.2,9.78882769]
[1762196787251,9.42522987,167.25,167.2,4.96204322]
[1762196787465,16.58273745,167.24,167.2,4.96204322]
[1762196787665,3.90273745,167.23,167.2,4.96204322]
[1762196787866,3.90273745,167.22,167.21,4.96204322]
[1762196789257,4.60273745,167.22,167.21,4.96204322]
[1762196789555,3.90273745,167.22,167.2,4.96204322]
[1762196789750,18.24249242,167.24,167.21,4.96204322]
[1762196789967,3.9065451,167.23,167.22,4.96204322]
[1762196790174,4.6065451,167.23,167.22,4.96204322]
[1762196791175,3.9065451,167.23,167.22,4.96204322]
[1762196791663,4.6065451,167.23,167.22,4.96204322]
[1762196792468,4.6065451,167.23,167.14,24.7463254]
[1762196792663,3.9065451,167.22,167.21,4.96204322]
[1762196793373,4.5665451,167.22,167.21,4.96204322]
[1762196793580,3.9065451,167.22,167.21,10.94254677]
[1762196793876,3.9065451,167.23,167.21,10.94254677]
[1762196794082,3.90829096,167.23,167.22,4.96204322]
[1762196794777,3.90829096,167.23,167.22,10.94218913]
[1762196795082,3.90829096,167.23,167.22,4.96204322]
[1762196795871,3.90829096,167.23,167.22,10.94218913]
[1762196796071,3.90829096,167.23,167.22,4.96204322]
[1762196796581,3.90829096,167.26,167.22,4.96204322]
[1762196796761,3.90829096,167.25,167.21,5.98045518]
[1762196796962,3.90829096,167.24,167.21,5.98045518]
[1762196797163,3.90829096,167.26,167.21,5.98045518]
[1762196797364,3.90829096,167.25,167.21,5.98045518]
[1762196797569,3.90829096,167.26,167.21,5.98045518]
[1762196797966,12.66,167.27,167.25,4.96204322]
[1762196798173,3.90829096,167.26,167.21,20.93171407]
[1762196799195,3.90829096,167.26,167.22,9.78882769]
[1762196799377,3.90829096,167.26,167.25,4.96204322]
[1762196799715,3.90829096,167.29,167.25,4.96204322]
[1762196799893,13.32,167.3,167.28,4.96204322]
[1762196800190,3.90660711,167.29,167.22,9.78882769]
[1762196800396,4.86249242,167.37,167.25,20.592]
[1762196800572,13.3,167.39,167.3,9.78882769]
[1762196800974,0.66,167.38,167.32,9.78882769]
[1762196801174,0.66,167.38,167.37,4.96204322]
[1762196802079,0.66,167.38,167.32,9.78882769]
[1762196802301,0.66,167.38,167.37,4.96204322]
[1762196803077,0.66,167.41,167.37,4.96204322]
[1762196803283,0.66,167.41,167.4,4.96204322]
[1762196803995,12.66,167.42,167.4,4.96204322]
[1762196804200,0.2,167.45,167.35,9.78882769]
[1762196804494,0.66,167.44,167.41,4.96204322]
[1762196804699,0.66,167.44,167.35,9.78882769]
[1762196804894,0.66,167.44,167.41,4.96204322]
[1762196805105,0.66,167.44,167.35,9.78882769]
[1762196805106,0.66,167.44,167.43,4.96204322]
[1762196805486,12.86,167.45,167.43,4.96204322]
[1762196805691,12.86,167.45,167.44,4.96204322]
[1762196806401,0.2,167.45,167.44,14.75087091]
[1762196806999,0.2,167.45,167.44,20.72315949]
[1762196807586,0.2,167.45,167.44,14.75087091]
[1762196807898,0.2,167.45,167.44,20.72315949]
[1762196809599,0.2,167.47,167.46,4.96204322]
[1762196809798,0.66,167.53,167.46,4.96204322]
[1762196810001,0.66,167.53,167.52,4.96204322]
[1762196810304,0.66,167.53,167.5,7.63418663]